bitfinex-derivatives/quotes_ETHF0:USTF0_20260121
["timestamp","ask_amount","ask_price","bid_price","bid_amount"]
[1768978073004,1.25162421,2979.3,2978.3,0.0088488]
[1768978073209,1.38856349,2979.3,2978.3,0.0088488]
[1768978074303,0.168,2979.2,2978.3,0.0088488]
[1768978079414,0.99107074,2979.1,2978.3,0.0088488]
[1768978079616,0.99107074,2979.0,2978.3,0.0088488]
[1768978079914,0.168,2979.2,2978.3,0.0088488]
[1768978080215,0.99106708,2979.1,2978.3,0.0088488]
[1768978080415,0.168,2979.2,2978.3,1.09247301]
[1768978080616,0.9911305,2979.1,2978.3,1.09247301]
[1768978080817,0.168,2979.2,2978.3,1.09247301]
[1768978081913,1.22056349,2979.7,2978.5,1.08362421]
[1768978082218,0.99161357,2979.6,2978.5,1.08362421]
[1768978082413,0.99161357,2979.5,2978.5,1.08362421]
[1768978082616,0.16798,2979.7,2978.9,1.08362421]
[1768978083408,0.16798,2979.7,2978.9,1.2288601]
[1768978083615,1.08655387,2980.4,2979.1,1.08362421]
[1768978083811,0.99059263,2980.3,2979.1,1.2288601]
[1768978084011,0.99059263,2980.2,2979.1,1.2288601]
[1768978084213,0.99059263,2980.1,2979.1,1.2288601]
[1768978084519,1.08655387,2980.4,2979.1,1.2288601]
[1768978084722,1.14377592,2980.3,2979.1,1.2288601]
[1768978084922,0.97583592,2980.2,2979.1,1.2288601]
[1768978085422,0.97583592,2980.2,2979.3,1.08362421]
[1768978085611,0.97583592,2980.2,2979.1,1.2288601]
[1768978085816,2.05946013,2980.2,2979.1,1.2288601]
[1768978086123,1.08362421,2980.2,2979.1,1.2288601]
[1768978087119,1.08362421,2980.2,2979.1,0.14523589]
[1768978088624,1.08362421,2980.2,2978.8,1.08362421]
[1768978088826,1.08362421,2980.2,2978.8,1.2288601]
[1768978089316,1.08362421,2980.2,2979.0,1.08362421]
[1768978090720,0.16794,2980.3,2979.0,1.08362421]
[1768978090920,0.16794,2980.3,2979.2,1.08362421]
[1768978091121,0.16794,2980.3,2979.4,1.08362421]
[1768978091323,0.00292966,2980.4,2979.4,1.08362421]
[1768978091727,0.00292966,2980.4,2979.8,1.08362421]
[1768978092625,0.00292966,2980.4,2979.8,1.08865624]
[1768978094026,1.38847349,2980.9,2979.8,1.08865624]
[1768978094935,1.3911021,2980.9,2979.8,1.08865624]
[1768978095230,1.3911021,2980.9,2979.8,0.00503203]
[1768978096831,0.30747789,2980.9,2979.8,0.00503203]
[1768978098840,0.17053861,2980.9,2979.8,0.00503203]
[1768978099041,0.00262861,2980.9,2979.8,1.2344931]
[1768978099341,0.00262861,2980.9,2979.9,0.14705619]
[1768978113543,1.39045786,2980.9,2979.8,0.00503203]
[1768978113749,0.30543437,2980.7,2979.8,0.00503203]
[1768978114148,0.13751437,2980.6,2979.8,0.00503203]
[1768978117450,0.16792,2980.7,2979.8,0.00503203]
[1768978118449,0.30543437,2980.7,2979.8,0.00503203]
[1768978121957,0.16792,2980.6,2979.8,0.00503203]
[1768978124451,0.00262861,2980.9,2979.8,0.00503203]
[1768978124656,0.97205728,2980.8,2979.8,0.00503203]
[1768978124858,0.00262861,2980.9,2979.8,0.00503203]
[1768978125155,0.97208326,2980.8,2979.8,0.00503203]
[1768978125358,0.00262861,2980.9,2979.8,0.00503203]
[1768978136859,0.00262861,2980.9,2979.8,0.14046729]
[1768978140663,0.00262861,2980.9,2980.0,0.13543526]
[1768978142564,0.1485732,2981.5,2980.0,0.13543526]
[1768978142760,0.96936479,2981.4,2980.0,0.13543526]
[1768978142962,0.96936479,2981.3,2980.0,0.13543526]
[1768978143157,0.1485732,2981.5,2980.0,0.13543526]
[1768978143363,0.96941923,2981.4,2980.0,0.13543526]
[1768978143558,0.96941923,2981.3,2980.0,0.13543526]
[1768978143768,0.00309298,2981.4,2980.0,0.13543526]
[1768978143968,0.96941827,2981.3,2980.0,0.13543526]
[1768978144169,0.00309298,2981.4,2980.0,0.13543526]
[1768978144370,0.96928108,2981.3,2980.0,0.13543526]
[1768978144570,0.00309298,2981.4,2980.0,0.13543526]
[1768978144775,0.96928112,2981.3,2980.0,0.13543526]
[1768978145077,0.00309298,2981.4,2980.0,0.13543526]
[1768978145274,0.96928018,2981.3,2980.0,0.13543526]
[1768978145471,0.00309298,2981.4,2980.0,0.13543526]
[1768978145672,1.11779579,2981.3,2979.8,0.00503203]
[1768978145972,0.1485732,2981.3,2979.9,2.223]
[1768978146576,0.1485732,2981.2,2979.8,0.14046729]
[1768978146875,0.3164632,2981.2,2979.8,0.00503203]
[1768978147077,0.1485732,2981.1,2979.8,0.00503203]
[1768978151282,0.3164732,2981.1,2979.8,0.00503203]
[1768978154982,0.1679,2981.1,2979.9,0.13543526]
[1768978156479,0.1679,2981.1,2979.8,1.08743691]
[1768978156480,0.00309298,2981.4,2980.2,1.22169005]
[1768978156786,0.96440968,2981.3,2980.2,1.22169005]
[1768978156987,0.00309298,2981.4,2980.5,1.08182169]
[1768978157285,0.96440811,2981.3,2980.5,1.08609355]
[1768978157486,0.00309298,2981.4,2980.5,0.00427186]
[1768978157782,0.96432763,2981.3,2980.5,0.00427186]
[1768978157986,0.00309298,2981.4,2980.5,0.00427186]
[1768978158186,0.96432969,2981.3,2980.5,0.00427186]
[1768978158376,0.00309298,2981.4,2980.5,0.00427186]
[1768978158574,0.96427184,2981.3,2980.5,0.00427186]
[1768978158783,0.00309298,2981.4,2980.5,0.00427186]
[1768978158988,0.9642726,2981.3,2980.5,0.00427186]
[1768978159189,0.00309298,2981.4,2980.5,0.00427186]
[1768978159383,0.96422656,2981.3,2980.5,0.00427186]
[1768978159685,0.00309298,2981.4,2980.5,0.00427186]
[1768978159886,0.96422679,2981.3,2980.5,0.00427186]
[1768978160085,0.00309298,2981.4,2980.5,0.00427186]
[1768978160276,0.96422677,2981.3,2980.5,0.00427186]
[1768978160481,0.00309298,2981.4,2980.5,0.00427186]
[1768978160689,0.96420226,2981.3,2980.5,0.00427186]
[1768978160888,0.00309298,2981.4,2980.5,0.00427186]
[1768978161189,0.96425067,2981.3,2980.5,0.00427186]
[1768978161485,0.00309298,2981.4,2980.5,0.00427186]
[1768978161678,0.96423704,2981.3,2980.5,0.00427186]
[1768978161879,0.00309298,2981.4,2980.5,0.00427186]
[1768978162080,0.96423485,2981.3,2980.5,0.00427186]
[1768978162291,0.00309298,2981.4,2980.5,0.00427186]
[1768978162480,0.96422313,2981.3,2980.5,0.00427186]
[1768978162679,0.00309298,2981.4,2980.5,0.00427186]
[1768978164192,0.14756154,2981.4,2980.5,0.00427186]
[1768978164490,1.22629025,2981.0,2980.5,0.00427186]
[1768978165086,0.14446856,2981.0,2980.5,0.00427186]
[1768978165785,1.39726323,2981.4,2980.5,0.00427186]
[1768978165990,0.14446856,2981.3,2980.5,0.00427186]
[1768978168493,0.17097298,2981.4,2980.5,0.00427186]
[1768978169595,0.14756154,2981.4,2980.5,0.00427186]
[1768978169798,1.08182169,2980.6,2979.8,0.00503203]
[1768978170187,0.14446856,2980.7,2979.8,0.00503203]
[1768978170588,0.16791,2980.9,2980.2,1.08182169]
[1768978170796,0.16791,2980.9,2980.2,1.08568843]
[1768978170983,1.08491467,2981.4,2980.2,1.08568843]
[1768978171190,0.96386887,2981.3,2980.2,0.00386674]
[1768978171495,0.96386887,2981.2,2980.2,0.00386674]
[1768978171684,0.96386887,2981.1,2980.2,0.00386674]
[1768978171883,1.22938323,2981.4,2980.2,0.00386674]
[1768978172098,0.96382858,2981.3,2980.2,0.00386674]
[1768978172286,0.96382858,2981.2,2980.2,0.00386674]
[1768978172487,0.96382858,2981.1,2980.2,0.00386674]
[1768978172689,1.22938323,2981.4,2980.2,0.00386674]
[1768978172989,0.96365435,2981.3,2980.2,0.00386674]
[1768978173190,0.96365435,2981.2,2980.2,0.00386674]
[1768978173398,0.96365435,2981.1,2980.2,0.00386674]
[1768978173690,1.22938323,2981.4,2980.2,0.00386674]
[1768978173895,0.96362511,2981.3,2980.2,0.00386674]
[1768978174197,0.96362511,2981.2,2980.2,0.00386674]
[1768978174395,0.96362511,2981.1,2980.2,0.00386674]
[1768978174585,1.22938323,2981.4,2980.2,0.00386674]
[1768978174783,0.9621529,2981.3,2980.2,0.00386674]
[1768978174998,0.9621529,2981.2,2980.2,0.00386674]
[1768978175191,0.9621529,2981.1,2980.2,0.00386674]
[1768978175392,0.14446856,2981.3,2980.2,0.00386674]
[1768978175593,0.96212317,2981.2,2980.2,0.00386674]
[1768978175793,0.96212317,2981.1,2980.2,0.00386674]
[1768978175991,0.14446856,2981.3,2980.2,0.00386674]
[1768978176191,0.96199314,2981.2,2980.2,0.00386674]
[1768978176398,0.96199314,2981.1,2980.2,0.00386674]
[1768978176697,0.14446856,2981.3,2980.2,0.00386674]
[1768978176890,0.96197321,2981.2,2980.2,0.00386674]
[1768978177091,0.96197321,2981.1,2980.2,0.00386674]
[1768978177402,0.14446856,2981.3,2980.2,0.00386674]
[1768978177604,0.96196024,2981.2,2980.2,0.00386674]
[1768978177901,0.96196024,2981.1,2980.2,0.00386674]
[1768978178199,0.14446856,2981.3,2980.2,0.00386674]
[1768978178503,0.9619612,2981.2,2980.2,0.00386674]
[1768978178800,0.9619612,2981.1,2980.2,0.00386674]
[1768978179002,0.14446856,2981.3,2980.2,0.00386674]
[1768978179305,0.96189298,2981.2,2980.2,0.00386674]
[1768978179496,0.96189298,2981.1,2980.2,0.00386674]
[1768978179696,0.14446856,2981.3,2980.2,0.00386674]
[1768978179898,1.10496293,2981.2,2980.2,0.00386674]
[1768978180203,0.96049437,2981.1,2980.2,0.00386674]
[1768978180390,0.14446856,2981.2,2980.2,0.00386674]
[1768978180596,0.96049419,2981.1,2980.2,1.08568843]
[1768978180798,0.14446856,2981.2,2980.2,1.08568843]
[1768978181099,0.96049577,2981.1,2980.2,1.08568843]
[1768978181300,0.14446856,2981.2,2980.2,1.08568843]
[1768978181601,0.96049586,2981.1,2980.2,1.08568843]
[1768978181902,0.16789,2981.3,2980.2,1.08568843]
[1768978182092,0.96049745,2981.2,2980.2,1.08568843]
[1768978182292,0.96049745,2981.1,2980.2,1.08568843]
[1768978182493,0.16789,2981.2,2980.2,1.08568843]
[1768978182693,0.96048741,2981.1,2980.2,1.08568843]
[1768978182896,0.16789,2981.2,2980.2,1.08568843]
[1768978183195,0.96044592,2981.1,2980.2,1.08568843]
[1768978183397,0.16789,2981.2,2980.2,1.08568843]
[1768978183592,0.96029615,2981.1,2980.2,1.08568843]
[1768978183799,0.16789,2981.2,2980.2,1.08568843]
[1768978184002,0.96025265,2981.1,2980.2,1.08568843]
[1768978184200,0.16789,2981.2,2980.2,1.08568843]
[1768978184402,0.96026309,2981.1,2980.2,1.08568843]
[1768978184601,0.16789,2981.2,2980.4,1.08182169]
[1768978184805,0.16789,2981.2,2980.6,1.08182169]
[1768978186704,0.00309298,2981.4,2980.8,1.08182169]
[1768978187012,0.00309298,2981.4,2980.6,1.08182169]
[1768978191212,0.00309298,2981.4,2980.2,0.00386674]
[1768978191213,0.30782472,2981.4,2980.2,0.00386674]
[1768978193025,1.38656343,2981.2,2980.2,0.00386674]
[1768978193321,0.30474174,2981.2,2980.2,0.00386674]
[1768978195019,1.24972169,2981.0,2980.2,0.00386674]
[1768978195826,1.38657343,2981.0,2980.2,0.00386674]
[1768978197927,0.16791,2980.9,2980.2,0.00386674]
[1768978198124,1.21867343,2981.0,2979.8,0.00503203]
[1768978198125,1.24975169,2980.6,2979.8,0.00503203]
[1768978198332,0.16793,2980.6,2979.8,0.00503203]
[1768978199228,0.16793,2980.6,2979.8,0.00789415]
[1768978199729,1.21867343,2980.8,2979.8,0.00789415]
[1768978201636,1.08182169,2980.4,2979.8,0.00789415]
[1768978201933,1.08182169,2980.4,2979.2,2.212]
[1768978202326,1.21867343,2980.4,2979.1,6.65182169]
[1768978202525,1.21867343,2980.4,2979.1,1.08182169]
[1768978202734,1.21867343,2980.4,2979.1,1.08607588]
[1768978203233,1.21867343,2980.4,2979.1,3.29807588]
[1768978203433,0.13685174,2980.3,2979.1,3.29807588]
[1768978203632,0.13685174,2980.3,2979.1,1.08607588]
[1768978203833,1.21867343,2980.2,2979.1,0.00425419]
[1768978204032,0.13685174,2980.2,2979.1,1.08607588]
[1768978204624,0.13685174,2980.2,2979.3,1.08182169]
[1768978204935,0.16792,2980.7,2979.8,1.08182169]
[1768978205733,0.16792,2980.7,2979.6,1.08182169]
[1768978205938,1.08182169,2980.6,2979.4,1.08182169]
[1768978208231,1.21867343,2980.6,2979.4,1.08182169]
[1768978208638,1.08182169,2980.3,2979.1,0.00425419]
[1768978209133,0.30478174,2980.4,2979.2,1.08182169]
[1768978209332,0.30478174,2980.4,2979.4,1.08182169]
[1768978212038,0.16793,2980.4,2979.4,1.08182169]
[1768978214942,0.16793,2980.4,2979.6,1.08182169]
[1768978217143,0.16793,2980.4,2979.4,1.08182169]
[1768978218444,0.16794,2980.3,2979.4,1.08182169]
[1768978218844,0.16794,2980.3,2979.3,0.13720789]
[1768978229153,0.13685174,2980.8,2979.3,0.13720789]
[1768978229454,0.95486967,2980.7,2979.3,0.13720789]
[1768978229647,0.95486967,2980.6,2979.3,0.13720789]
[1768978229850,0.30476174,2980.8,2979.3,0.13720789]
[1768978230148,0.95487212,2980.7,2979.3,0.13720789]
[1768978230346,0.95487212,2980.6,2979.3,0.13720789]
[1768978230546,0.30476174,2980.8,2979.3,0.13720789]
[1768978230751,0.95493371,2980.7,2979.3,0.13720789]
[1768978230945,0.95493371,2980.6,2979.3,0.13720789]
[1768978231149,0.30476174,2980.8,2979.3,0.13720789]
[1768978231348,0.95493346,2980.7,2979.3,0.13720789]
[1768978231545,1.09634914,2980.6,2979.1,0.00425419]
[1768978231748,0.14141568,2980.5,2979.1,2.21125419]
[1768978232751,0.30934568,2980.5,2979.1,0.00425419]
[1768978232949,0.14141568,2980.3,2979.1,0.00425419]
[1768978234961,0.16794,2980.4,2979.1,0.15040992]
[1768978259270,0.31770145,2980.4,2979.1,0.15040992]
[1768978259568,1.40026394,2980.1,2979.1,0.00425419]
[1768978259767,1.27362235,2980.0,2979.1,0.00425419]
[1768978260065,0.14976145,2979.7,2978.4,7.58689069]
[1768978260270,0.31774145,2979.7,2978.4,3.359]
[1768978260971,0.14976145,2979.6,2978.4,3.36201259]
[1768978261470,0.31775145,2979.4,2978.4,0.00301259]
[1768978261672,0.14976145,2979.3,2978.4,0.00301259]
[1768978261866,0.1527815,2979.3,2978.4,0.00301259]
[1768978264968,0.14976145,2979.2,2978.4,0.00301259]
[1768978268570,0.31776145,2979.2,2978.4,0.00301259]
[1768978268878,0.16801,2979.1,2977.6,1.75205905]
[1768978269472,0.16802,2978.9,2977.6,0.14705905]
[1768978269870,0.00503203,2978.6,2977.6,0.15037294]
[1768978273073,0.00503203,2978.6,2977.6,0.00331389]
[1768978277075,0.00503203,2978.6,2977.6,0.1514286]
[1768978278783,0.00503203,2978.6,2977.6,0.00331389]
[1768978278984,1.08416603,2978.4,2977.6,0.00331389]
[1768978279481,1.08919806,2978.6,2977.6,0.00331389]
[1768978283986,1.23258833,2978.6,2977.6,0.00331389]
[1768978284779,1.08919806,2978.6,2977.6,0.00331389]
[1768978286096,1.08416603,2978.2,2977.6,0.00331389]
[1768978286880,1.08416603,2977.8,2976.5,0.14811471]
[1768978287087,1.08416603,2977.6,2976.5,0.14811471]
[1768978287883,1.08416603,2977.6,2976.5,0.15048414]
[1768978292591,1.1,2977.0,2976.5,0.15048414]
[1768978292892,1.10417351,2977.0,2976.5,0.15048414]
[1768978295594,1.10417351,2977.0,2976.5,0.00236943]
[1768978296093,1.10417351,2977.0,2976.5,0.15048414]
[1768978296479,1.10417351,2977.0,2976.6,1.08416603]
[1768978301600,1.10417351,2977.0,2976.5,0.15048414]
[1768978301899,1.10417351,2977.0,2976.5,0.00236943]
[1768978307101,0.00417351,2977.0,2976.3,1.10036943]
[1768978308200,0.00417351,2977.0,2976.3,1.10365105]
[1768978308604,0.00417351,2977.0,2976.4,2.198]
[1768978309100,0.00417351,2977.0,2975.7,0.75832168]
[1768978309101,0.00417351,2977.0,2975.2,0.14453843]
[1768978309300,0.00417351,2977.0,2975.3,2.198]
[1768978309301,1.08416603,2976.6,2975.3,2.198]
[1768978309504,1.08416603,2976.6,2975.4,1.08416603]
[1768978309800,1.08416603,2976.8,2975.4,1.08416603]
[1768978309997,1.08416603,2976.8,2975.4,1.08722081]
[1768978310997,0.16940238,2976.9,2975.6,1.08416603]
[1768978311195,0.00417351,2977.0,2976.4,1.08416603]
[1768978312503,1.08416603,2977.8,2976.6,1.08416603]
[1768978312799,1.08416603,2977.8,2976.4,1.08416603]
[1768978313401,1.08812037,2977.8,2976.4,1.08416603]
[1768978314611,1.0,2977.0,2976.4,1.08416603]
[1768978318107,1.0,2977.0,2976.2,1.22870446]
[1768978318709,1.0,2977.0,2976.6,1.08416603]
[1768978318908,1.08812037,2977.8,2976.6,1.08416603]
[1768978320312,0.00395434,2977.8,2976.6,1.22870446]
[1768978320800,0.00395434,2977.8,2976.8,1.08416603]
[1768978321001,0.00395434,2977.8,2976.7,0.14453843]
[1768978321002,0.00395434,2977.8,2977.0,1.08416603]
[1768978321314,0.00395434,2977.8,2977.2,1.08416603]
[1768978321712,0.00395434,2977.8,2977.0,1.08416603]
[1768978322708,0.00395434,2977.8,2977.0,1.22870446]
[1768978322917,0.00395434,2977.8,2977.2,1.08416603]
[1768978323209,1.08416603,2978.4,2977.2,1.08416603]
[1768978323416,0.94572632,2978.3,2977.2,1.08416603]
[1768978323715,1.08416603,2978.4,2977.2,1.08416603]
[1768978323913,0.94569645,2978.3,2977.2,1.08416603]
[1768978324111,0.00366544,2978.3,2977.4,1.08416603]
[1768978324703,0.00366544,2978.3,2977.2,1.08416603]
[1768978327718,0.00366544,2978.3,2977.2,1.22870446]
[1768978328019,0.00366544,2978.3,2977.4,1.08416603]
[1768978328212,0.00366544,2978.3,2977.6,1.08416603]
[1768978328410,1.08416603,2979.0,2977.8,1.22870446]
[1768978328712,0.00827564,2979.1,2978.0,1.08416603]
[1768978328918,1.08416603,2979.2,2978.0,1.08416603]
[1768978329119,1.08416603,2979.4,2978.0,1.08416603]
[1768978329316,1.08416603,2979.2,2978.0,1.08416603]
[1768978329620,1.08416603,2979.0,2978.0,0.00405868]
[1768978330813,1.08416603,2978.2,2977.0,0.14453843]
[1768978331827,1.08416603,2978.2,2977.0,0.14728413]
[1768978333539,0.17211943,2978.5,2977.0,0.14728413]
[1768978333832,1.08416603,2978.0,2977.0,0.0027457]
[1768978334040,1.08416603,2978.2,2977.0,0.0027457]
[1768978335729,1.08416603,2978.0,2977.0,0.0027457]
[1768978337141,1.08822807,2978.0,2977.0,0.0027457]
[1768978337335,1.08416603,2977.8,2977.0,0.0027457]
[1768978338939,0.00406204,2978.0,2977.0,0.0027457]
[1768978340642,0.17213204,2978.0,2977.0,0.0027457]
[1768978341142,0.00427106,2977.9,2977.0,0.0027457]
[1768978346944,0.16807,2978.0,2977.0,0.0027457]
[1768978347948,0.00408544,2978.3,2977.0,0.0027457]
[1768978352150,0.17213544,2978.3,2977.0,0.0027457]
[1768978352350,0.9443214,2978.2,2977.0,0.0027457]
[1768978352550,0.17213544,2978.3,2977.0,0.0027457]
[1768978352751,0.94432175,2978.2,2977.0,0.0027457]
[1768978352941,0.17213544,2978.3,2977.0,0.0027457]
[1768978353145,0.94432606,2978.2,2977.0,0.0027457]
[1768978353346,0.17213544,2978.3,2977.0,0.0027457]
[1768978354057,0.94431054,2978.2,2977.0,0.0027457]
[1768978354363,0.17213544,2978.3,2977.0,0.0027457]
[1768978355954,0.16806,2978.2,2977.0,0.0027457]
[1768978356957,0.16806,2978.1,2977.0,0.0027457]
[1768978360151,1.09079853,2977.8,2977.0,0.0027457]
[1768978360352,1.25889853,2977.4,2976.0,4.22789069]
[1768978360755,1.25889853,2977.4,2975.9,0.13965988]
[1768978361256,1.25889853,2977.4,2975.9,0.14213812]
[1768978362861,0.17422021,2977.4,2975.9,0.14213812]
[1768978365262,0.1681,2977.4,2975.9,0.14213812]
[1768978365470,0.1681,2977.4,2976.2,0.1356984]
[1768978365961,0.17336092,2978.2,2976.5,0.13877556]
[1768978366156,1.2712317,2978.1,2976.5,0.13877556]
[1768978366356,1.2712317,2978.0,2976.5,0.13877556]
[1768978366556,0.94425121,2977.9,2976.5,0.13877556]
[1768978366862,0.17336092,2978.2,2976.5,0.13877556]
[1768978367066,0.94428893,2978.1,2976.5,0.13877556]
[1768978367367,0.94428893,2978.0,2976.5,0.13877556]
[1768978367662,0.17336092,2978.2,2976.5,0.13877556]
[1768978367861,0.94430516,2978.1,2976.5,0.13877556]
[1768978368063,0.94430516,2978.0,2976.5,0.13877556]
[1768978368262,0.17336092,2978.2,2976.5,0.13877556]
[1768978368563,0.94429452,2978.1,2976.5,0.13877556]
[1768978368756,0.94429452,2978.0,2976.5,0.13877556]
[1768978369061,0.17336092,2978.2,2976.5,0.13877556]
[1768978369254,0.94436119,2978.1,2976.5,0.13877556]
[1768978369453,0.94436119,2978.0,2976.5,0.13877556]
[1768978369757,0.17336092,2978.2,2976.5,0.13877556]
[1768978369958,0.94438801,2978.1,2976.5,0.13877556]
[1768978370261,0.94438801,2978.0,2976.5,0.13877556]
[1768978370466,0.17336092,2978.2,2976.5,0.13877556]
[1768978370662,0.94440602,2978.1,2976.5,0.13877556]
[1768978370861,0.94440602,2978.0,2976.5,0.13877556]
[1768978371065,0.17336092,2978.2,2976.5,0.13877556]
[1768978371363,0.94440885,2978.1,2976.5,0.13877556]
[1768978371563,0.94440885,2978.0,2976.5,0.13877556]
[1768978371764,0.17336092,2978.2,2976.5,0.13877556]
[1768978371968,0.94439921,2978.1,2976.5,0.13877556]
[1768978372169,0.94439921,2978.0,2976.5,0.13877556]
[1768978372382,0.17336092,2978.2,2976.5,0.13877556]
[1768978372565,0.94440626,2978.1,2976.5,0.13877556]
[1768978372764,0.17336092,2978.2,2976.5,0.13877556]
[1768978372969,0.94444757,2978.1,2976.5,0.13877556]
[1768978373171,0.17336092,2978.2,2976.5,0.13877556]
[1768978373461,0.94444795,2978.1,2976.5,0.13877556]
[1768978373661,0.17336092,2978.2,2976.5,0.13877556]
[1768978373870,0.94445975,2978.1,2976.5,0.13877556]
[1768978374171,0.17336092,2978.2,2976.5,0.13877556]
[1768978374371,0.94445862,2978.1,2976.5,0.13877556]
[1768978374573,0.17336092,2978.2,2976.5,0.13877556]
[1768978374871,0.94447093,2978.1,2976.5,0.13877556]
[1768978375073,0.17336092,2978.2,2976.5,0.13877556]
[1768978375272,0.94447214,2978.1,2976.5,0.13877556]
[1768978375477,0.17336092,2978.2,2976.5,0.13877556]
[1768978375771,0.94448624,2978.1,2976.5,0.13877556]
[1768978375974,0.17336092,2978.2,2976.5,0.13877556]
[1768978376277,0.9444831,2978.1,2976.5,0.13877556]
[1768978376467,0.17336092,2978.2,2976.5,0.13877556]
[1768978376761,0.94457275,2978.1,2976.5,0.13877556]
[1768978376965,0.17336092,2978.2,2976.5,0.13877556]
[1768978377267,0.94457603,2978.1,2976.5,0.13877556]
[1768978377467,0.17336092,2978.2,2976.5,0.13877556]
[1768978377770,0.94458839,2978.1,2976.5,0.13877556]
[1768978377962,0.17336092,2978.2,2976.5,0.13877556]
[1768978378166,0.94458663,2978.1,2976.5,0.13877556]
[1768978378366,0.17336092,2978.2,2976.5,0.13877556]
[1768978378566,0.94459988,2978.1,2976.5,0.13877556]
[1768978378773,0.17336092,2978.2,2976.5,0.13877556]
[1768978378977,0.94459989,2978.1,2976.5,0.13877556]
[1768978379275,0.17336092,2978.2,2976.5,0.13877556]
[1768978379475,0.94461554,2978.1,2976.5,0.13877556]
[1768978379676,0.17336092,2978.2,2976.5,0.13877556]
[1768978379974,0.94461557,2978.1,2976.5,0.13877556]
[1768978380170,0.17336092,2978.2,2976.5,0.13877556]
[1768978380378,0.94461543,2978.1,2976.5,0.13877556]
[1768978380569,0.17336092,2978.2,2976.5,0.13877556]
[1768978380770,0.94460315,2978.1,2976.5,0.13877556]
[1768978380969,0.17336092,2978.2,2976.5,0.13877556]
[1768978381169,0.94463336,2978.1,2976.5,0.13877556]
[1768978381377,0.16806,2978.1,2976.5,0.13877556]
[1768978388672,1.08467832,2978.4,2976.5,0.13877556]
[1768978388876,1.27191749,2978.3,2976.5,0.13877556]
[1768978389183,1.08467832,2978.1,2976.5,0.13877556]
[1768978389378,0.94478365,2978.0,2976.5,0.13877556]
[1768978389578,0.16808,2977.8,2976.5,0.13877556]
[1768978390480,1.5,2978.8,2976.1,0.13877556]
[1768978390481,0.16809,2977.6,2976.1,0.13877556]
[1768978390676,0.1681,2977.5,2976.1,0.13877556]
[1768978391282,1.08467832,2977.7,2976.1,0.13877556]
[1768978391581,0.16811,2977.3,2976.1,0.13877556]
[1768978396885,0.16807,2978.0,2976.1,0.13877556]
[1768978397188,1.1130709,2977.9,2976.1,0.13877556]
[1768978397389,0.9450009,2977.8,2976.1,0.13877556]
[1768978397584,0.16807,2977.9,2976.1,0.13877556]
[1768978397793,0.94492883,2977.8,2976.1,0.13877556]
[1768978397989,0.16807,2977.9,2976.1,0.13877556]
[1768978398183,0.94492825,2977.8,2976.1,0.13877556]
[1768978398379,0.16807,2977.9,2976.1,0.13877556]
[1768978398591,0.00503203,2977.3,2976.1,0.13877556]
[1768978400884,0.00503203,2977.3,2976.3,1.08483281]
[1768978402786,0.00503203,2977.3,2976.3,1.22032617]
[1768978402991,0.00503203,2977.3,2976.4,0.13549336]
[1768978403592,1.08483281,2977.2,2976.0,0.13549336]
[1768978406585,0.00503203,2977.3,2976.3,1.08483281]
[1768978406787,0.00503203,2977.3,2976.3,1.22032617]
[1768978407189,0.00503203,2977.3,2976.3,0.13549336]
[1768978407496,1.08986484,2977.3,2976.3,0.13549336]
[1768978407691,1.08986484,2977.3,2976.0,0.13549336]
[1768978408294,1.08986484,2977.3,2976.1,1.22032617]
[1768978408492,0.00503203,2977.3,2976.3,1.22032617]
[1768978409089,0.00503203,2977.3,2976.4,0.13549336]
[1768978409997,0.00503203,2977.3,2976.5,1.08483281]
[1768978412502,0.00093324,2978.0,2976.9,1.08483281]
[1768978412699,0.94417123,2977.9,2976.9,1.08483281]
[1768978412994,0.00093324,2978.0,2976.9,1.08483281]
[1768978413201,0.94417341,2977.9,2976.9,1.08483281]
[1768978413399,1.08483281,2978.1,2976.9,1.08483281]
[1768978413902,1.08483281,2978.1,2976.7,1.22032617]
[1768978414102,1.08483281,2977.9,2976.7,1.22032617]
[1768978414796,1.08483281,2977.9,2976.6,0.00503203]
[1768978414797,1.08483281,2977.5,2976.6,0.00503203]
[1768978416101,1.08483281,2977.7,2976.6,0.00503203]
[1768978416307,1.08483281,2977.9,2976.8,0.13549336]
[1768978422216,0.16807,2978.0,2976.9,1.22032617]
[1768978423518,0.16807,2978.0,2977.1,1.08483281]
[1768978423720,1.08483281,2978.5,2977.3,1.08483281]
[1768978423915,0.94429625,2978.4,2977.3,1.08483281]
[1768978424113,1.25287281,2978.6,2977.3,1.08483281]
[1768978424318,0.94427942,2978.5,2977.3,1.08483281]
[1768978424518,0.94427942,2978.4,2977.3,1.22032617]
[1768978424820,0.16804,2978.6,2977.7,1.08483281]
[1768978425020,7.53383281,2979.0,2977.7,1.08483281]
[1768978425213,0.94441339,2978.9,2977.7,1.22763444]
[1768978425523,0.94441339,2978.8,2977.7,1.22763444]
[1768978425713,1.08483281,2978.8,2977.7,0.14280163]
[1768978430623,1.08483281,2978.6,2977.5,1.08483281]
[1768978430828,1.08483281,2978.4,2977.3,1.22078829]
[1768978431925,1.25287281,2978.6,2977.4,0.13595548]
[1768978432226,0.16804,2978.6,2977.6,0.13595548]
[1768978435932,1.25287281,2978.6,2977.6,0.13595548]
[1768978436133,1.25287281,2978.6,2977.3,1.22078829]
[1768978436432,1.08483281,2978.4,2977.3,1.22078829]
[1768978437434,1.08483281,2978.4,2977.3,0.13595548]
[1768978439228,1.08483281,2978.2,2977.0,5.537]
[1768978439534,1.08483281,2978.2,2977.0,5.67295548]
[1768978441433,1.08483281,2978.2,2977.1,1.22078829]
[1768978442438,1.08483281,2978.4,2977.1,1.22078829]
[1768978442632,0.16804,2978.6,2977.5,1.08483281]
[1768978442837,0.16804,2978.6,2977.5,1.22078829]
[1768978443042,1.08483281,2978.8,2977.6,0.13595548]
[1768978446045,1.08483281,2978.8,2977.7,1.08483281]
[1768978446746,1.08483281,2979.0,2977.8,0.13595548]
[1768978447045,0.94188627,2978.9,2977.8,0.13595548]
[1768978447349,1.08483281,2979.0,2977.8,0.13595548]
[1768978447547,0.94202989,2978.9,2978.1,0.00503203]
[1768978447751,1.08483281,2978.8,2978.1,0.00771725]
[1768978448138,1.08483281,2978.4,2977.4,0.13595548]
[1768978448339,1.08483281,2978.0,2977.0,0.13595548]
[1768978449035,1.08483281,2978.2,2977.0,0.13595548]
[1768978449240,1.08483281,2978.2,2977.0,0.13920533]
[1768978450346,1.08483281,2978.0,2977.0,0.00324985]
[1768978453144,1.08483281,2977.8,2977.0,0.00324985]
[1768978456554,1.08483281,2978.0,2977.0,0.00324985]
[1768978459455,0.00128864,2978.3,2977.0,0.00324985]
[1768978459658,1.08483281,2978.1,2977.0,0.00324985]
[1768978459865,0.00128864,2978.3,2977.0,1.08808266]
[1768978460058,1.08483281,2978.0,2977.0,0.00324985]
[1768978460864,0.00128864,2978.3,2977.0,0.00324985]
[1768978476262,0.94150126,2978.2,2977.0,0.00324985]
[1768978476565,0.00128864,2978.3,2977.0,0.00324985]
[1768978476858,0.94150126,2978.2,2977.0,0.00324985]
[1768978477057,0.00128864,2978.3,2977.0,0.00324985]